[Event "*** Titled Tuesday 3|2 Blitz (Early)"]
[Site "Chess.com"]
[Date "2017.01.03"]
[Round "1"]
[White "BjarkeSahl"]
[Black "DuleMudule"]
[Result "0-1"]
[WhiteElo "2244"]
[BlackElo "2487"]
[TimeControl "180+2"]
[EndTime "11:03:15 PST"]
[Termination "DuleMudule won by resignation"]

1. e4 {[%clk 0:03:01.9]} 1... c5 {[%clk 0:03:01.3]} 2. Nf3 {[%clk 0:03:00.5]}
2... Nc6 {[%clk 0:03:02.4]} 3. d4 {[%clk 0:03:00.9]} 3... cxd4 {[%clk
0:03:04.3]} 4. Nxd4 {[%clk 0:03:02.6]} 4... Qc7 {[%clk 0:03:05.9]} 5. Nc3 {[%clk
0:03:02.7]} 5... e6 {[%clk 0:03:07.4]} 6. g3 {[%clk 0:02:51.9]} 6... a6 {[%clk
0:03:07.9]} 7. Bg2 {[%clk 0:02:52.8]} 7... Nf6 {[%clk 0:03:08.7]} 8. O-O {[%clk
0:02:53]} 8... Bc5 {[%clk 0:03:09.8]} 9. Nb3 {[%clk 0:02:52.3]} 9... Ba7 {[%clk
0:03:10.6]} 10. Qe2 {[%clk 0:02:53.9]} 10... Ne5 {[%clk 0:03:11.8]} 11. Be3
{[%clk 0:02:47.6]} 11... Bxe3 {[%clk 0:03:12.5]} 12. Qxe3 {[%clk 0:02:47.3]}
12... d6 {[%clk 0:03:14.1]} 13. Rad1 {[%clk 0:02:46.8]} 13... Nc4 {[%clk
0:03:15.2]} 14. Qc1 {[%clk 0:02:47.5]} 14... Bd7 {[%clk 0:03:16.3]} 15. Rfe1
{[%clk 0:02:44.3]} 15... Rc8 {[%clk 0:03:17.2]} 16. h3 {[%clk 0:02:45]} 16...
Nxb2 {[%clk 0:03:03.3]} 17. Qxb2 {[%clk 0:02:42.8]} 17... Qxc3 {[%clk
0:03:04.1]} 18. Qa3 {[%clk 0:02:39.5]} 18... O-O {[%clk 0:02:54.2]} 19. Qxd6
{[%clk 0:02:31.9]} 19... Bc6 {[%clk 0:02:54]} 20. Qf4 {[%clk 0:02:30.3]} 20...
Qxc2 {[%clk 0:02:52.7]} 21. Nd4 {[%clk 0:02:27.5]} 21... Qxa2 {[%clk 0:02:51.2]}
22. Nxc6 {[%clk 0:02:24.5]} 22... Rxc6 {[%clk 0:02:48.1]} 23. e5 {[%clk
0:02:22.9]} 23... Nd5 {[%clk 0:02:48.9]} 24. Bxd5 {[%clk 0:02:19.7]} 24... exd5
{[%clk 0:02:49.6]} 25. Qf3 {[%clk 0:02:06.8]} 0-1

[Event "*** Titled Tuesday 3|2 Blitz (Early)"]
[Site "Chess.com"]
[Date "2017.01.03"]
[Round "1"]
[White "pKiLz5Rn9b"]
[Black "Rating-Schmating"]
[Result "1-0"]
[WhiteElo "2488"]
[BlackElo "2264"]
[TimeControl "180+2"]
[EndTime "11:04:10 PST"]
[Termination "pKiLz5Rn9b won by checkmate"]

1. e4 {[%clk 0:03:02]} 1... e6 {[%clk 0:02:58.9]} 2. g3 {[%clk 0:03:02]} 2... d5
{[%clk 0:02:58.9]} 3. Bg2 {[%clk 0:03:03.6]} 3... Nf6 {[%clk 0:03:00.1]} 4. e5
{[%clk 0:03:03.9]} 4... Nfd7 {[%clk 0:03:01.1]} 5. d4 {[%clk 0:03:05.8]} 5... c5
{[%clk 0:03:02.3]} 6. c3 {[%clk 0:03:07.4]} 6... Nc6 {[%clk 0:03:02.6]} 7. Ne2
{[%clk 0:03:09]} 7... b6 {[%clk 0:03:01.2]} 8. O-O {[%clk 0:03:09.3]} 8... Be7
{[%clk 0:03:01.5]} 9. Be3 {[%clk 0:03:10.4]} 9... Ba6 {[%clk 0:03:02]} 10. f4
{[%clk 0:03:10.6]} 10... cxd4 {[%clk 0:03:01.2]} 11. cxd4 {[%clk 0:03:10.8]}
11... Rc8 {[%clk 0:02:59.9]} 12. Nbc3 {[%clk 0:03:09.9]} 12... h6 {[%clk
0:02:57.2]} 13. f5 {[%clk 0:03:10.3]} 13... exf5 {[%clk 0:02:55.6]} 14. Nxd5
{[%clk 0:03:09.8]} 14... Nb4 {[%clk 0:02:51.8]} 15. Rxf5 {[%clk 0:03:00.3]}
15... Nxd5 {[%clk 0:02:48.7]} 16. Bxd5 {[%clk 0:03:00.3]} 16... O-O {[%clk
0:02:49.1]} 17. Nc3 {[%clk 0:02:59.1]} 17... Bb4 {[%clk 0:02:43.1]} 18. Qh5
{[%clk 0:02:51]} 18... Bxc3 {[%clk 0:02:38]} 19. Bxf7+ {[%clk 0:02:44.5]} 19...
Kh7 {[%clk 0:02:28.1]} 20. Qg6+ {[%clk 0:02:38.4]} 20... Kh8 {[%clk 0:02:26.9]}
21. bxc3 {[%clk 0:02:34.4]} 21... Bd3 {[%clk 0:02:24.9]} 22. Bxh6 {[%clk
0:02:33.4]} 22... Rxf7 {[%clk 0:02:22.3]} 23. Qxf7 {[%clk 0:02:17.4]} 23... gxh6
{[%clk 0:02:20]} 24. Rh5 {[%clk 0:02:14.3]} 24... Qf8 {[%clk 0:02:18.7]} 25.
Qxd7 {[%clk 0:02:11.3]} 25... Rxc3 {[%clk 0:02:14.9]} 26. Qd6 {[%clk 0:02:11.5]}
26... Qf3 {[%clk 0:02:09.8]} 27. Qxh6+ {[%clk 0:02:06.7]} 27... Kg8 {[%clk
0:02:10.9]} 28. Rg5+ {[%clk 0:02:08.2]} 28... Kf7 {[%clk 0:02:11.3]} 29. Rg7+
{[%clk 0:02:09.5]} 29... Kf8 {[%clk 0:02:11.2]} 30. Qh8# {[%clk 0:02:10.7]} 1-0

[Event "*** Titled Tuesday 3|2 Blitz (Early)"]
[Site "Chess.com"]
[Date "2017.01.03"]
[Round "1"]
[White "VMikhalevski"]
[Black "cassoulet"]
[Result "0-1"]
[WhiteElo "2482"]
[BlackElo "2304"]
[TimeControl "180+2"]
[EndTime "11:05:26 PST"]
[Termination "cassoulet won by resignation"]

1. Nf3 {[%clk 0:03:02]} 1... d5 {[%clk 0:03:01.1]} 2. g3 {[%clk 0:03:02.3]} 2...
Nf6 {[%clk 0:03:03]} 3. Bg2 {[%clk 0:03:01]} 3... g6 {[%clk 0:03:04.9]} 4. O-O
{[%clk 0:02:55.4]} 4... Bg7 {[%clk 0:03:06.8]} 5. d4 {[%clk 0:02:56.5]} 5... O-O
{[%clk 0:03:08.1]} 6. c4 {[%clk 0:02:56.2]} 6... dxc4 {[%clk 0:03:10]} 7. Na3
{[%clk 0:02:51]} 7... c3 {[%clk 0:03:10.5]} 8. bxc3 {[%clk 0:02:51.3]} 8... c5
{[%clk 0:03:12.1]} 9. Nc4 {[%clk 0:02:51.7]} 9... Nc6 {[%clk 0:03:12]} 10. Nce5
{[%clk 0:02:50.7]} 10... Nxe5 {[%clk 0:03:09.1]} 11. Nxe5 {[%clk 0:02:50.1]}
11... Qc7 {[%clk 0:03:08.6]} 12. Ba3 {[%clk 0:02:39.6]} 12... Rd8 {[%clk
0:02:40]} 13. Bxc5 {[%clk 0:02:36.4]} 13... Nd5 {[%clk 0:02:40.1]} 14. Qb3
{[%clk 0:02:26.6]} 14... Be6 {[%clk 0:02:28]} 15. c4 {[%clk 0:02:27.3]} 15...
Nb6 {[%clk 0:02:27.7]} 16. Qb4 {[%clk 0:02:13.8]} 16... Bxe5 {[%clk 0:02:18.9]}
17. dxe5 {[%clk 0:02:13.5]} 17... Nxc4 {[%clk 0:02:19.9]} 18. Bxe7 {[%clk
0:02:05.8]} 18... Rd7 {[%clk 0:02:18.3]} 19. Bf6 {[%clk 0:02:04.2]} 19... Nxe5
{[%clk 0:02:11.4]} 20. Rac1 {[%clk 0:01:59.1]} 20... Qb8 {[%clk 0:02:11.9]} 21.
h3 {[%clk 0:01:49.6]} 21... Nc6 {[%clk 0:02:00]} 22. Qh4 {[%clk 0:01:46.6]}
22... Qf8 {[%clk 0:01:56.8]} 23. Rc5 {[%clk 0:01:44.4]} 23... Qxc5 {[%clk
0:01:49.6]} 24. Bxc6 {[%clk 0:01:38.9]} 24... bxc6 {[%clk 0:01:48.4]} 25. Ba1
{[%clk 0:01:38.7]} 25... Qf5 {[%clk 0:01:33.4]} 26. Qh6 {[%clk 0:01:29.5]} 26...
f6 {[%clk 0:01:33.3]} 27. g4 {[%clk 0:01:30.1]} 27... Qg5 {[%clk 0:01:31.3]} 0-1

[Event "*** Titled Tuesday 3|2 Blitz (Early)"]
[Site "Chess.com"]
[Date "2017.01.03"]
[Round "1"]
[White "1e41-0"]
[Black "OparinGrigoriy"]
[Result "1/2-1/2"]
[WhiteElo "2318"]
[BlackElo "2567"]
[TimeControl "180+2"]
[EndTime "11:05:33 PST"]
[Termination "Game drawn by repetition"]

1. e4 {[%clk 0:03:02]} 1... e5 {[%clk 0:03:00.8]} 2. Nf3 {[%clk 0:03:01.1]} 2...
Nc6 {[%clk 0:03:02.4]} 3. g3 {[%clk 0:03:01.6]} 3... Nf6 {[%clk 0:03:02.5]} 4.
d3 {[%clk 0:03:02.4]} 4... d5 {[%clk 0:03:03.5]} 5. exd5 {[%clk 0:03:03.1]} 5...
Nxd5 {[%clk 0:03:05.4]} 6. Bg2 {[%clk 0:03:04.3]} 6... Bc5 {[%clk 0:03:05.3]} 7.
O-O {[%clk 0:03:05.2]} 7... O-O {[%clk 0:03:06.9]} 8. Re1 {[%clk 0:03:04.1]}
8... Re8 {[%clk 0:03:08]} 9. Bd2 {[%clk 0:02:58.1]} 9... Bg4 {[%clk 0:03:08.6]}
10. Nc3 {[%clk 0:02:57.8]} 10... Nd4 {[%clk 0:03:03.3]} 11. Nxd5 {[%clk
0:02:29.7]} 11... Qxd5 {[%clk 0:02:59.6]} 12. Nxd4 {[%clk 0:02:29.2]} 12... Qxd4
{[%clk 0:02:59.2]} 13. Be3 {[%clk 0:02:29.1]} 13... Qxe3 {[%clk 0:02:45.8]} 14.
fxe3 {[%clk 0:02:26.1]} 14... Bxd1 {[%clk 0:02:47.4]} 15. Raxd1 {[%clk
0:02:27.3]} 15... c6 {[%clk 0:02:49]} 16. Kf1 {[%clk 0:02:19.8]} 16... Rad8
{[%clk 0:02:49.3]} 17. c3 {[%clk 0:02:13.5]} 17... g6 {[%clk 0:02:49.1]} 18. d4
{[%clk 0:02:13.4]} 18... Bb6 {[%clk 0:02:50.3]} 19. dxe5 {[%clk 0:01:56.6]}
19... Rxe5 {[%clk 0:02:50]} 20. Rxd8+ {[%clk 0:01:55.8]} 20... Bxd8 {[%clk
0:02:50.7]} 21. Rd1 {[%clk 0:01:56.5]} 21... Bb6 {[%clk 0:02:48.8]} 22. Rd7
{[%clk 0:01:56.7]} 22... Rxe3 {[%clk 0:02:49]} 23. Rxb7 {[%clk 0:01:56.4]} 23...
Rd3 {[%clk 0:02:50.6]} 24. Bxc6 {[%clk 0:01:54.9]} 24... Rd2 {[%clk 0:02:51.7]}
25. c4 {[%clk 0:01:36.8]} 25... Rf2+ {[%clk 0:02:48]} 26. Ke1 {[%clk 0:01:34.8]}
26... Rxb2 {[%clk 0:02:49.6]} 27. Bd5 {[%clk 0:01:17.2]} 27... Rxh2 {[%clk
0:02:50.2]} 28. Rxf7 {[%clk 0:01:16.3]} 28... Kh8 {[%clk 0:02:51]} 29. g4 {[%clk
0:01:10.6]} 29... Rxa2 {[%clk 0:02:06.8]} 30. g5 {[%clk 0:01:09.4]} 30... h6
{[%clk 0:02:07.9]} 31. Rf8+ {[%clk 0:01:06.8]} 31... Kg7 {[%clk 0:02:06.3]} 32.
Rf7+ {[%clk 0:01:07.9]} 32... Kh8 {[%clk 0:02:07.6]} 33. Rf8+ {[%clk 0:01:08.5]}
33... Kg7 {[%clk 0:02:09.1]} 34. Rf7+ {[%clk 0:01:09.7]} 34... Kh8 {[%clk
0:02:10.6]} 1/2-1/2

[Event "*** Titled Tuesday 3|2 Blitz (Early)"]
[Site "Chess.com"]
[Date "2017.01.03"]
[Round "1"]
[White "Salem-AR"]
[Black "sandropozo"]
[Result "0-1"]
[WhiteElo "2705"]
[BlackElo "2400"]
[TimeControl "180+2"]
[EndTime "11:05:49 PST"]
[Termination "sandropozo won by resignation"]

1. d4 {[%clk 0:03:02]} 1... d5 {[%clk 0:02:56.9]} 2. c4 {[%clk 0:03:02.9]} 2...
c6 {[%clk 0:02:57.1]} 3. Nf3 {[%clk 0:03:03.6]} 3... Nf6 {[%clk 0:02:58.4]} 4.
Nc3 {[%clk 0:03:04.9]} 4... dxc4 {[%clk 0:02:56.4]} 5. e4 {[%clk 0:03:06.1]}
5... b5 {[%clk 0:02:54.5]} 6. e5 {[%clk 0:03:07.8]} 6... Nd5 {[%clk 0:02:54.9]}
7. a4 {[%clk 0:03:09.3]} 7... e6 {[%clk 0:02:45.5]} 8. Be2 {[%clk 0:03:10.2]}
8... Bb7 {[%clk 0:02:39.7]} 9. O-O {[%clk 0:03:11.1]} 9... Nd7 {[%clk
0:02:35.7]} 10. Ne4 {[%clk 0:03:12]} 10... Be7 {[%clk 0:02:34.8]} 11. Bg5 {[%clk
0:03:09.8]} 11... O-O {[%clk 0:02:25.5]} 12. Bxe7 {[%clk 0:03:10.6]} 12... Qxe7
{[%clk 0:02:25.7]} 13. Nd6 {[%clk 0:03:12.3]} 13... N7b6 {[%clk 0:02:23.1]} 14.
a5 {[%clk 0:03:11.9]} 14... Na4 {[%clk 0:02:19]} 15. Rxa4 {[%clk 0:03:13]} 15...
bxa4 {[%clk 0:02:18.3]} 16. Qxa4 {[%clk 0:03:12.7]} 16... c3 {[%clk 0:02:11.3]}
17. a6 {[%clk 0:03:06.1]} 17... Bc8 {[%clk 0:02:10.9]} 18. Qxc6 {[%clk
0:03:07.1]} 18... Bd7 {[%clk 0:02:11.7]} 19. Qc4 {[%clk 0:02:33.8]} 19... cxb2
{[%clk 0:02:10.7]} 20. Rb1 {[%clk 0:02:34.9]} 20... Rfc8 {[%clk 0:02:02.9]} 21.
Qd3 {[%clk 0:02:13.9]} 21... Rc1+ {[%clk 0:01:55.9]} 22. Bf1 {[%clk 0:02:14.7]}
22... Rb8 {[%clk 0:01:51.6]} 23. Nb7 {[%clk 0:02:15]} 23... Qb4 {[%clk
0:01:44.9]} 24. Ng5 {[%clk 0:02:15.8]} 24... g6 {[%clk 0:01:40.7]} 25. Qh3
{[%clk 0:01:38.6]} 25... h5 {[%clk 0:01:40.3]} 26. Qf3 {[%clk 0:01:39.2]} 26...
Rf8 {[%clk 0:01:38.5]} 27. Rxb2 {[%clk 0:01:14.8]} 27... Qxb2 {[%clk 0:01:37.7]}
28. h4 {[%clk 0:01:15.9]} 28... Bb5 {[%clk 0:01:37.4]} 29. Nd6 {[%clk
0:01:16.8]} 29... Rxf1+ {[%clk 0:01:36.2]} 30. Kh2 {[%clk 0:01:18.4]} 30... Rxf2
{[%clk 0:01:33.6]} 31. Qg3 {[%clk 0:01:19.9]} 31... Bf1 {[%clk 0:01:32.4]} 0-1

[Event "*** Titled Tuesday 3|2 Blitz (Early)"]
[Site "Chess.com"]
[Date "2017.01.03"]
[Round "1"]
[White "biostatistician"]
[Black "FearlessKing64"]
[Result "1-0"]
[WhiteElo "2430"]
[BlackElo "2057"]
[TimeControl "180+2"]
[EndTime "11:05:54 PST"]
[Termination "biostatistician won by resignation"]

1. d4 {[%clk 0:03:02]} 1... Nf6 {[%clk 0:03:00.5]} 2. Nf3 {[%clk 0:03:03.1]}
2... g6 {[%clk 0:03:01.5]} 3. c4 {[%clk 0:03:04.6]} 3... Bg7 {[%clk 0:03:02.7]}
4. Nc3 {[%clk 0:03:06.3]} 4... d5 {[%clk 0:03:03.9]} 5. cxd5 {[%clk 0:03:06.3]}
5... Nxd5 {[%clk 0:03:04.9]} 6. e4 {[%clk 0:03:08.2]} 6... Nxc3 {[%clk
0:03:05.9]} 7. bxc3 {[%clk 0:03:10.1]} 7... c5 {[%clk 0:03:07]} 8. Be3 {[%clk
0:03:10.5]} 8... Qa5 {[%clk 0:03:06.4]} 9. Qd2 {[%clk 0:03:11]} 9... O-O {[%clk
0:03:07.1]} 10. Rc1 {[%clk 0:03:10.5]} 10... cxd4 {[%clk 0:03:07.1]} 11. cxd4
{[%clk 0:03:12]} 11... Qxd2+ {[%clk 0:03:08.6]} 12. Nxd2 {[%clk 0:03:13.7]}
12... Rd8 {[%clk 0:03:08]} 13. Nb3 {[%clk 0:03:14.3]} 13... e6 {[%clk
0:02:50.9]} 14. Bg5 {[%clk 0:02:25.6]} 14... f6 {[%clk 0:02:48.3]} 15. Be3
{[%clk 0:02:26.6]} 15... Nc6 {[%clk 0:02:46.6]} 16. Bb5 {[%clk 0:02:23.7]} 16...
Bd7 {[%clk 0:02:46.9]} 17. Ke2 {[%clk 0:02:22.6]} 17... a6 {[%clk 0:02:39.9]}
18. Bd3 {[%clk 0:02:14.3]} 18... Be8 {[%clk 0:02:32.1]} 19. Bc4 {[%clk
0:02:11.3]} 19... Bf7 {[%clk 0:02:30.7]} 20. Rhd1 {[%clk 0:02:11.7]} 20... Rac8
{[%clk 0:02:22.6]} 21. d5 {[%clk 0:02:05.1]} 21... exd5 {[%clk 0:02:09.6]} 22.
Bxd5 {[%clk 0:02:06.1]} 22... Bxd5 {[%clk 0:01:52.4]} 23. exd5 {[%clk 0:02:08]}
23... Nb4 {[%clk 0:01:44.2]} 24. Rxc8 {[%clk 0:01:58.2]} 24... Rxc8 {[%clk
0:01:44.9]} 25. d6 {[%clk 0:01:57.8]} 25... Nxa2 {[%clk 0:01:38.4]} 26. d7
{[%clk 0:01:47.2]} 26... Rd8 {[%clk 0:01:39.4]} 27. Bb6 {[%clk 0:01:47.7]} 27...
Nc3+ {[%clk 0:01:39]} 28. Ke1 {[%clk 0:01:40.5]} 28... Nxd1 {[%clk 0:01:04]} 29.
Bxd8 {[%clk 0:01:40.6]} 29... Nb2 {[%clk 0:01:05.7]} 30. Be7 {[%clk 0:01:36.3]}
30... Nd3+ {[%clk 0:01:06.5]} 31. Kd2 {[%clk 0:01:34.3]} 1-0

[Event "*** Titled Tuesday 3|2 Blitz (Early)"]
[Site "Chess.com"]
[Date "2017.01.03"]
[Round "1"]
[White "chito89"]
[Black "stefanodinn"]
[Result "1-0"]
[WhiteElo "2509"]
[BlackElo "2231"]
[TimeControl "180+2"]
[EndTime "11:06:18 PST"]
[Termination "chito89 won by resignation"]

1. d4 {[%clk 0:03:02]} 1... Nf6 {[%clk 0:02:51.9]} 2. Nf3 {[%clk 0:02:57.2]}
2... d5 {[%clk 0:02:50]} 3. Bf4 {[%clk 0:02:56.6]} 3... c6 {[%clk 0:02:38.4]} 4.
e3 {[%clk 0:02:56.4]} 4... Bf5 {[%clk 0:02:38.6]} 5. c4 {[%clk 0:02:49.9]} 5...
e6 {[%clk 0:02:37.2]} 6. Nc3 {[%clk 0:02:50.3]} 6... Nbd7 {[%clk 0:02:20.4]} 7.
h3 {[%clk 0:02:46.8]} 7... h6 {[%clk 0:02:18.8]} 8. Qb3 {[%clk 0:02:39.9]} 8...
Qb6 {[%clk 0:02:04.9]} 9. c5 {[%clk 0:02:40.5]} 9... Qxb3 {[%clk 0:02:05.6]} 10.
axb3 {[%clk 0:02:41.4]} 10... a6 {[%clk 0:02:02.8]} 11. b4 {[%clk 0:02:39.3]}
11... Rc8 {[%clk 0:02:03.4]} 12. Nd2 {[%clk 0:02:37.6]} 12... Be7 {[%clk
0:01:22.7]} 13. Nb3 {[%clk 0:02:37.7]} 13... Bd8 {[%clk 0:01:22.2]} 14. Na5
{[%clk 0:02:37.8]} 14... Bxa5 {[%clk 0:01:21.9]} 15. Rxa5 {[%clk 0:02:36.6]}
15... O-O {[%clk 0:01:17]} 16. Bd6 {[%clk 0:02:21.2]} 16... Rfe8 {[%clk
0:01:15.4]} 17. f4 {[%clk 0:02:22]} 17... Ne4 {[%clk 0:01:12]} 18. Nxe4 {[%clk
0:02:22.4]} 18... Bxe4 {[%clk 0:01:12.6]} 19. Rg1 {[%clk 0:02:18.3]} 19... Bh7
{[%clk 0:00:49.9]} 20. g4 {[%clk 0:02:16.9]} 20... Nf6 {[%clk 0:00:50.7]} 21.
Bg2 {[%clk 0:02:17.8]} 21... Ne4 {[%clk 0:00:50.4]} 22. Bxe4 {[%clk 0:02:18.8]}
22... Bxe4 {[%clk 0:00:50.9]} 23. Kf2 {[%clk 0:02:20.5]} 23... f6 {[%clk
0:00:28.5]} 24. h4 {[%clk 0:02:21.4]} 24... Kf7 {[%clk 0:00:24.4]} 25. Raa1
{[%clk 0:02:23]} 25... g5 {[%clk 0:00:18.1]} 26. fxg5 {[%clk 0:02:17.6]} 26...
hxg5 {[%clk 0:00:18.7]} 27. hxg5 {[%clk 0:02:16.3]} 27... fxg5 {[%clk
0:00:19.2]} 28. Kg3 {[%clk 0:02:18]} 28... Kg6 {[%clk 0:00:13.4]} 29. Rgf1
{[%clk 0:02:19.6]} 29... Rh8 {[%clk 0:00:12.3]} 30. Rf2 {[%clk 0:02:19.7]} 30...
Rh4 {[%clk 0:00:12.2]} 31. Raf1 {[%clk 0:02:20]} 31... Rch8 {[%clk 0:00:10.1]}
32. Rf6+ {[%clk 0:02:21.5]} 32... Kg7 {[%clk 0:00:11]} 33. Rf7+ {[%clk
0:02:22.8]} 33... Kg8 {[%clk 0:00:10.3]} 34. Rf8+ {[%clk 0:02:23.4]} 34... Kg7
{[%clk 0:00:11.4]} 35. Be5+ {[%clk 0:02:24]} 1-0

[Event "*** Titled Tuesday 3|2 Blitz (Early)"]
[Site "Chess.com"]
[Date "2017.01.03"]
[Round "1"]
[White "Ar4uha"]
[Black "LonesomeGeorge1"]
[Result "1-0"]
[WhiteElo "2461"]
[BlackElo "2170"]
[TimeControl "180+2"]
[EndTime "11:06:23 PST"]
[Termination "Ar4uha won by checkmate"]

1. e4 {[%clk 0:03:02]} 1... c5 {[%clk 0:02:59]} 2. Nf3 {[%clk 0:03:00.9]} 2...
e6 {[%clk 0:02:59.7]} 3. g3 {[%clk 0:03:01]} 3... Nc6 {[%clk 0:02:58.2]} 4. Bg2
{[%clk 0:03:01.5]} 4... Be7 {[%clk 0:02:58.5]} 5. O-O {[%clk 0:03:01.9]} 5...
Nf6 {[%clk 0:02:57.6]} 6. Qe2 {[%clk 0:03:02.6]} 6... d6 {[%clk 0:02:54.4]} 7.
c3 {[%clk 0:02:56.5]} 7... O-O {[%clk 0:02:54]} 8. d4 {[%clk 0:02:57.3]} 8...
cxd4 {[%clk 0:02:55]} 9. cxd4 {[%clk 0:02:59.2]} 9... d5 {[%clk 0:02:56.6]} 10.
e5 {[%clk 0:03:00.8]} 10... Ne4 {[%clk 0:02:57.4]} 11. Nbd2 {[%clk 0:03:01]}
11... Nxd2 {[%clk 0:02:22.3]} 12. Bxd2 {[%clk 0:03:02.9]} 12... b6 {[%clk
0:02:20.4]} 13. Rfc1 {[%clk 0:02:58]} 13... Qd7 {[%clk 0:02:20.3]} 14. h4 {[%clk
0:02:57.2]} 14... a5 {[%clk 0:02:20.4]} 15. h5 {[%clk 0:02:52]} 15... Ba6 {[%clk
0:02:19.9]} 16. Qd1 {[%clk 0:02:53.3]} 16... h6 {[%clk 0:02:14.6]} 17. Be3
{[%clk 0:02:53]} 17... Rfc8 {[%clk 0:02:14.2]} 18. a3 {[%clk 0:02:52]} 18... Rc7
{[%clk 0:02:00.1]} 19. Qd2 {[%clk 0:02:50.8]} 19... Bf8 {[%clk 0:01:56.9]} 20.
g4 {[%clk 0:02:51.2]} 20... Rac8 {[%clk 0:01:33.6]} 21. g5 {[%clk 0:02:51.8]}
21... hxg5 {[%clk 0:01:35]} 22. Bxg5 {[%clk 0:02:52.7]} 22... Ne7 {[%clk
0:01:35.8]} 23. h6 {[%clk 0:02:52.6]} 23... Nf5 {[%clk 0:01:29.9]} 24. hxg7
{[%clk 0:02:50.8]} 24... Bxg7 {[%clk 0:01:26.9]} 25. Bh3 {[%clk 0:02:49.2]}
25... Rxc1+ {[%clk 0:01:21.3]} 26. Rxc1 {[%clk 0:02:51.1]} 26... Rxc1+ {[%clk
0:01:22.7]} 27. Qxc1 {[%clk 0:02:52]} 27... Be2 {[%clk 0:01:23.7]} 28. Bxf5
{[%clk 0:02:34.3]} 28... Bxf3 {[%clk 0:01:24.3]} 29. Bd3 {[%clk 0:02:34.7]}
29... Qa4 {[%clk 0:01:03.1]} 30. Qc8+ {[%clk 0:02:13.3]} 30... Bf8 {[%clk
0:01:04.1]} 31. Bh6 {[%clk 0:02:01.4]} 31... Qd1+ {[%clk 0:00:34.7]} 32. Bf1
{[%clk 0:01:52.8]} 32... Kh7 {[%clk 0:00:35.1]} 33. Qxf8 {[%clk 0:01:53.5]}
33... Kg6 {[%clk 0:00:35.3]} 34. Qg7+ {[%clk 0:01:54.6]} 34... Kf5 {[%clk
0:00:34.4]} 35. Qg5+ {[%clk 0:01:56.5]} 35... Ke4 {[%clk 0:00:35.5]} 36. Qf4#
{[%clk 0:01:58.4]} 1-0

[Event "*** Titled Tuesday 3|2 Blitz (Early)"]
[Site "Chess.com"]
[Date "2017.01.03"]
[Round "1"]
[White "roldieyi"]
[Black "gmsakk"]
[Result "0-1"]
[WhiteElo "2149"]
[BlackElo "2459"]
[TimeControl "180+2"]
[EndTime "11:06:26 PST"]
[Termination "gmsakk won by resignation"]

1. d4 {[%clk 0:03:00.7]} 1... d5 {[%clk 0:03:01]} 2. Nf3 {[%clk 0:03:00.9]} 2...
Nf6 {[%clk 0:02:59.2]} 3. g3 {[%clk 0:03:01.7]} 3... c5 {[%clk 0:03:00.1]} 4.
Bg2 {[%clk 0:03:01.8]} 4... Nc6 {[%clk 0:03:01]} 5. O-O {[%clk 0:03:01.4]} 5...
e6 {[%clk 0:03:00.8]} 6. c4 {[%clk 0:03:01.9]} 6... dxc4 {[%clk 0:03:00.7]} 7.
Qa4 {[%clk 0:02:58.5]} 7... cxd4 {[%clk 0:02:53.4]} 8. Nxd4 {[%clk 0:02:46.2]}
8... Qxd4 {[%clk 0:02:50.1]} 9. Bxc6+ {[%clk 0:02:42.1]} 9... Bd7 {[%clk
0:02:50.8]} 10. Bxd7+ {[%clk 0:02:41.3]} 10... Qxd7 {[%clk 0:02:51.2]} 11. Qxc4
{[%clk 0:02:40.7]} 11... Rc8 {[%clk 0:02:51.7]} 12. Qb3 {[%clk 0:02:34]} 12...
Bc5 {[%clk 0:02:50.5]} 13. Nc3 {[%clk 0:02:31.1]} 13... O-O {[%clk 0:02:50.4]}
14. Bg5 {[%clk 0:02:26.9]} 14... Qe7 {[%clk 0:02:50.6]} 15. Ne4 {[%clk
0:02:22.2]} 15... Bd4 {[%clk 0:02:50.9]} 16. e3 {[%clk 0:02:17]} 16... Be5
{[%clk 0:02:49.7]} 17. Rad1 {[%clk 0:02:03.1]} 17... h6 {[%clk 0:02:48.3]} 18.
Bxf6 {[%clk 0:02:02.4]} 18... Bxf6 {[%clk 0:02:49.4]} 19. Nxf6+ {[%clk
0:02:03.2]} 19... gxf6 {[%clk 0:02:48.2]} 20. Rd4 {[%clk 0:02:01]} 20... f5
{[%clk 0:02:48.5]} 21. Rb4 {[%clk 0:01:59.6]} 21... Rc7 {[%clk 0:02:49.4]} 22.
Rh4 {[%clk 0:01:59]} 22... Kg7 {[%clk 0:02:47.9]} 23. Qa4 {[%clk 0:01:58.4]}
23... Qf6 {[%clk 0:02:43.7]} 24. Qxa7 {[%clk 0:01:46.9]} 24... Qxb2 {[%clk
0:02:42.9]} 25. e4 {[%clk 0:01:38.5]} 25... fxe4 {[%clk 0:02:37.8]} 26. Qe3
{[%clk 0:01:36.7]} 26... Qf6 {[%clk 0:02:36.7]} 27. Qxe4 {[%clk 0:01:33.6]}
27... Ra8 {[%clk 0:02:34.8]} 28. Rf4 {[%clk 0:01:29]} 28... Qc3 {[%clk
0:02:22.2]} 29. Rg4+ {[%clk 0:01:19.8]} 29... Kf8 {[%clk 0:02:21.2]} 30. Qf4
{[%clk 0:01:19.8]} 30... Rxa2 {[%clk 0:02:16.4]} 31. Qxh6+ {[%clk 0:01:20]}
31... Ke7 {[%clk 0:02:17.1]} 32. Rf4 {[%clk 0:01:15.9]} 32... Ra5 {[%clk
0:02:13]} 33. Qh4+ {[%clk 0:01:13.3]} 33... Ke8 {[%clk 0:02:08.1]} 34. Rd1
{[%clk 0:01:08.7]} 34... Rd5 {[%clk 0:01:58]} 35. Re1 {[%clk 0:00:46]} 35...
Qxe1+ {[%clk 0:01:57.7]} 0-1